bitfinex/quotes_SOLUSD_20220130
["timestamp","ask_amount","ask_price","bid_price","bid_amount"]
[1643516551530,6.0,94.847,94.8,6.0]
[1643516552629,6.0,94.847,94.792,24.0274]
[1643516552829,23.1007,94.846,94.792,24.0274]
[1643516553030,6.0,94.836,94.792,24.0274]
[1643516553630,6.0,94.836,94.792,25.33991059]
[1643516554034,6.0,94.836,94.792,24.0274]
[1643516561538,6.0,94.836,94.802,6.0]
[1643516561940,0.884953,94.836,94.792,24.0274]
[1643516562141,0.25,94.84,94.792,24.0274]
[1643516562338,22.8007,94.846,94.792,24.0274]
[1643516562637,22.8007,94.846,94.793,0.1]
[1643516563338,6.0,94.836,94.793,0.1]
[1643516564742,24.5983,94.835,94.793,0.1]
[1643516565340,6.0,94.836,94.793,0.1]
[1643516565541,0.25,94.84,94.793,0.1]
[1643516565940,6.0,94.848,94.793,0.1]
[1643516567944,6.0,94.84,94.793,0.1]
[1643516568345,6.25,94.84,94.793,0.1]
[1643516577056,6.0,94.839,94.793,0.1]
[1643516577258,6.0,94.83,94.793,0.1]
[1643516577456,0.3,94.838,94.793,0.1]
[1643516577656,6.25,94.839,94.793,0.1]
[1643516577657,0.25,94.829,94.793,0.1]
[1643516577960,6.25,94.839,94.793,0.1]
[1643516579966,6.25,94.839,94.794,1.31251059]
[1643516580564,6.25,94.839,94.793,0.1]
[1643516586590,6.25,94.839,94.793,105.5]
[1643516586793,6.25,94.839,94.802,6.0]
[1643516586990,6.25,94.839,94.803,6.0]
[1643516587191,6.25,94.839,94.803,6.1]
[1643516587392,6.25,94.839,94.803,6.0]
[1643516588195,6.25,94.839,94.81,15.34]
[1643516588394,6.0,94.839,94.811,0.1]
[1643516588594,6.0,94.858,94.811,0.1]
[1643516588797,6.0,94.858,94.811,24.2858]
[1643516588995,6.0466118,94.87,94.812,0.1]
[1643516589494,0.0466118,94.87,94.812,0.1]
[1643516589795,6.0,94.86,94.812,0.1]
[1643516590399,0.25,94.859,94.812,0.1]
[1643516590596,0.0466118,94.87,94.812,0.1]
[1643516590997,6.0,94.866,94.812,0.1]
[1643516591496,6.0,94.866,94.812,0.35]
[1643516591897,0.25,94.865,94.812,0.35]
[1643516592096,6.25,94.865,94.812,0.35]
[1643516592297,22.20634055,94.864,94.812,0.35]
[1643516592497,0.4,94.863,94.812,0.35]
[1643516592699,6.0,94.854,94.812,0.35]
[1643516592997,0.25,94.853,94.812,0.35]
[1643516594198,0.25,94.853,94.812,0.1]
[1643516600706,6.0,94.854,94.812,0.35]
[1643516606517,6.0,94.854,94.812,0.1]
[1643516606714,0.25,94.853,94.812,0.35]
[1643516608117,0.25,94.853,94.812,0.1]
[1643516609122,6.0,94.854,94.812,0.1]
[1643516613146,0.25,94.853,94.812,0.1]
[1643516616948,6.0,94.851,94.812,0.1]
[1643516617149,6.0,94.843,94.812,0.1]
[1643516617351,0.25,94.842,94.812,0.1]
[1643516617650,0.25,94.842,94.813,1.31251059]
[1643516617854,0.25,94.842,94.812,0.1]
[1643516630568,0.25,94.842,94.813,1.31235635]
[1643516630966,0.55,94.852,94.813,1.31235635]
[1643516634871,0.55,94.852,94.812,0.1]
[1643516635572,0.3,94.852,94.812,0.1]
[1643516635770,0.55,94.852,94.812,0.1]
[1643516635972,23.4916,94.853,94.812,0.1]
[1643516637402,0.25,94.852,94.812,0.1]
[1643516638375,23.4916,94.853,94.812,0.1]
[1643516638575,0.25,94.852,94.812,0.1]
[1643516638974,22.7416,94.853,94.812,0.1]
[1643516639174,0.25,94.852,94.812,0.35]
[1643516640577,0.25,94.852,94.812,0.1]
[1643516640778,0.25,94.852,94.812,0.35]
[1643516640980,0.25,94.852,94.812,0.25]
[1643516641579,0.25,94.852,94.811,24.1858]
[1643516644782,0.25,94.852,94.811,25.49815635]
[1643516645405,0.25,94.852,94.812,0.25]
[1643516647209,0.25,94.852,94.811,24.1858]
[1643516649311,18.2416,94.853,94.811,24.1858]
[1643516649512,0.25,94.852,94.811,24.1858]
[1643516649711,0.25,94.852,94.812,0.25]
[1643516651115,0.25,94.852,94.811,24.1858]
[1643516651312,0.25,94.852,94.81,15.34]
[1643516656724,18.2416,94.853,94.81,15.34]
[1643516656924,18.2416,94.853,94.811,0.25]
[1643516657927,18.2416,94.853,94.81,15.34]
[1643516658123,0.25,94.852,94.811,0.25]
[1643516659123,0.25,94.852,94.81,15.34]
[1643516661429,6.0,94.843,94.81,15.34]
[1643516661628,6.0,94.843,94.79,15.34]
[1643516661827,0.25,94.842,94.79,15.34]
[1643516662027,6.25,94.842,94.79,15.34]
[1643516662430,24.9972,94.841,94.79,15.34]
[1643516662834,0.25,94.84,94.79,15.34]
[1643516663038,6.0,94.831,94.773,1.46391608]
[1643516663234,6.0,94.831,94.77,15.34]
[1643516663435,0.25,94.83,94.76,15.34]
[1643516663663,1.46533179,94.829,94.76,15.34]
[1643516663864,1.71533179,94.828,94.76,15.34]
[1643516664167,6.0,94.818,94.76,15.34]
[1643516664364,0.25,94.817,94.76,15.34]
[1643516665168,1.46533179,94.837,94.761,1.31235635]
[1643516665366,24.9972,94.841,94.77,6.0]
[1643516665572,24.9972,94.841,94.78,17.1771635]
[1643516665766,24.9972,94.841,94.781,23.296]
[1643516665966,181.79682298,94.873,94.79,6.0]
[1643516665967,0.1,94.861,94.79,6.0]
[1643516666167,42.38079893,94.85,94.8,15.34]
[1643516666568,20.141859,94.849,94.758,1.46391608]
[1643516666768,1.46533179,94.845,94.76,15.34]
[1643516666969,6.0,94.84,94.76,15.34]
[1643516667368,107.11533179,94.839,94.76,15.34]
[1643516667569,6.0,94.83,94.76,15.34]
[1643516667771,0.25,94.829,94.76,15.34]
[1643516668170,6.0,94.83,94.761,0.25]
[1643516668369,105.4,94.839,94.761,1.56235635]
[1643516668571,6.0,94.83,94.761,1.56235635]
[1643516669072,6.0,94.83,94.761,0.25]
[1643516669671,0.25,94.829,94.761,0.25]
[1643516670871,0.25,94.829,94.761,1.56235635]
[1643516671574,0.25,94.829,94.76,15.34]
[1643516673281,0.25,94.829,94.74,15.34]
[1643516673480,0.25,94.829,94.74,21.34]
[1643516673681,0.25,94.829,94.741,1.56235635]
[1643516674076,0.25,94.829,94.742,1.31235635]
[1643516674275,0.25,94.829,94.743,0.25]
[1643516674679,0.25,94.829,94.744,1.31235635]
[1643516674982,0.25,94.829,94.745,0.25]
[1643516675478,0.25,94.829,94.746,1.31235635]
[1643516675880,0.25,94.829,94.747,0.25]
[1643516676078,23.34,94.829,94.747,0.25]
[1643516676277,23.34,94.829,94.748,1.31235635]
[1643516676577,24.47584968,94.819,94.74,21.34]
[1643516676777,24.9698,94.818,94.74,21.34]
[1643516676978,6.0,94.81,94.74,21.34]
[1643516677278,0.25,94.809,94.74,21.34]
[1643516677877,0.25,94.809,94.741,0.25]
[1643516678077,0.25,94.809,94.741,1.56235635]
[1643516678278,0.25,94.809,94.742,1.31235635]
[1643516678679,0.25,94.809,94.743,22.8485]
[1643516679082,0.25,94.809,94.744,1.31235635]
[1643516679284,0.25,94.809,94.745,0.25]
[1643516679581,0.25,94.809,94.76,15.34]
[1643516679782,6.0,94.81,94.761,0.25]
[1643516679982,6.0,94.81,94.761,1.56235635]
[1643516681184,0.25,94.809,94.761,1.56235635]
[1643516683513,0.25,94.809,94.761,1.31235635]
[1643516684511,0.25,94.809,94.76,15.34]
[1643516684910,0.25,94.809,94.761,0.25]
[1643516685111,0.25,94.809,94.76,15.34]
[1643516687116,0.25,94.809,94.761,1.31235635]
[1643516687316,0.25,94.809,94.762,0.25]
[1643516687717,0.25,94.809,94.763,1.31235635]
[1643516687916,0.25,94.809,94.764,0.25]
[1643516688916,0.25,94.809,94.765,1.31235635]
[1643516689118,0.25,94.809,94.77,15.34]
[1643516709839,0.25,94.819,94.77,15.34]
[1643516710540,0.1,94.868,94.77,15.34]
[1643516710541,1.46533179,94.829,94.77,27.27]
[1643516710740,1.46533179,94.835,94.78,6.0]
[1643516711039,1.46533179,94.844,94.79,15.34]
[1643516711239,1.46533179,94.85,94.79,26.17]
[1643516711440,1.46533179,94.852,94.791,0.25]
[1643516711739,38.78117985,94.857,94.791,0.25]
[1643516711943,0.25,94.851,94.791,0.25]
[1643516712139,0.25,94.856,94.791,0.25]
[1643516713639,23.1395,94.856,94.791,0.25]
[1643516714640,0.25,94.856,94.792,1.31235635]
[1643516714840,23.1134,94.856,94.793,0.25]
[1643516715041,23.1134,94.856,94.791,0.25]
[1643516717444,23.1134,94.856,94.791,1.56235635]
[1643516717642,0.25,94.856,94.791,0.25]
[1643516717843,0.0466118,94.87,94.791,0.25]
[1643516717844,0.25,94.862,94.791,0.25]
[1643516718043,6.0,94.86,94.791,0.25]
[1643516718545,42.44521021,94.859,94.791,0.25]
[1643516719145,65.98231021,94.859,94.791,0.25]
[1643516724879,65.98231021,94.859,94.792,1.30941867]
[1643516725077,65.98231021,94.859,94.791,0.25]
[1643516728077,6.0,94.849,94.791,0.25]
[1643516728277,0.25,94.848,94.791,0.25]
[1643516728881,23.6493,94.848,94.791,0.25]
[1643516729081,23.6493,94.848,94.791,1.55941867]
[1643516729381,23.6493,94.848,94.791,1.30941867]
[1643516729581,23.6493,94.848,94.79,15.34]
[1643516730983,6.0,94.838,94.79,15.34]
[1643516731387,0.25,94.837,94.79,15.34]
[1643516736289,0.25,94.837,94.791,0.25]
[1643516736691,6.0,94.838,94.791,0.25]
[1643516736891,0.25,94.837,94.791,0.25]
[1643516737089,0.25,94.837,94.79,15.34]
[1643516738092,6.0,94.828,94.79,15.34]
[1643516738292,0.25,94.827,94.79,15.34]
[1643516738492,0.25,94.827,94.791,24.2017]
[1643516739495,0.25,94.837,94.791,24.2017]
[1643516745302,6.0,94.838,94.792,0.25]
[1643516745501,6.0,94.842,94.801,6.0]
[1643516745704,1.46533179,94.858,94.801,6.0]
[1643516745901,1.46533179,94.859,94.802,30.1994]
[1643516746104,6.0,94.849,94.812,6.0]
[1643516746504,0.25,94.848,94.812,6.0]
[1643516746709,0.25,94.848,94.802,23.9494]
[1643516746905,0.25,94.849,94.802,23.9494]
[1643516747307,6.25,94.85,94.802,23.9494]
[1643516747510,6.0,94.84,94.802,23.9494]
[1643516747909,0.25,94.839,94.802,23.9494]
[1643516748908,0.25,94.846,94.802,23.9494]
[1643516749307,0.25,94.847,94.802,23.9494]
[1643516751414,0.25,94.847,94.79,15.34]
[1643516751614,23.9926,94.847,94.79,15.34]
[1643516752014,6.0,94.837,94.79,15.34]
[1643516752416,0.25,94.836,94.79,15.34]
[1643516753417,0.25,94.846,94.79,15.34]
[1643516753616,0.25,94.846,94.791,0.25]
[1643516754415,0.25,94.846,94.8,6.0]
[1643516754616,0.25,94.846,94.8,21.34]
[1643516754817,0.25,94.846,94.8,15.34]
[1643516755017,0.25,94.846,94.81,6.0]
[1643516756617,0.25,94.846,94.8,15.34]
[1643516757118,6.0,94.837,94.8,15.34]
[1643516757320,0.25,94.836,94.8,15.34]
[1643516758347,0.1,94.865,94.801,106.95992786]
[1643516758548,0.0932236,94.87,94.811,150.4]
[1643516758745,0.0932236,94.87,94.821,105.4]
[1643516758947,0.0028944,94.87,94.823,144.4]
[1643516759246,0.0028944,94.87,94.834,105.4]
[1643516759445,0.0028944,94.87,94.833,6.0]
[1643516759446,0.0028944,94.87,94.861,105.4]
[1643516759846,0.0028944,94.87,94.862,1.55992786]
[1643516760246,0.0028944,94.87,94.863,1.30992786]
[1643516760651,0.0028944,94.87,94.864,0.25]
[1643516761048,0.0028944,94.87,94.865,1.31956006]
[1643516761448,0.0028944,94.87,94.866,0.25]
[1643516761847,0.0028944,94.87,94.867,1.31956006]
[1643516762248,0.0028944,94.87,94.868,0.25]
[1643516762748,0.0028944,94.87,94.869,1.31956006]
[1643516763347,0.0028944,94.87,94.869,1.56956006]
[1643516764048,6.25,94.941,94.869,1.56956006]
[1643516764248,6.25,94.941,94.88,15.34]
[1643516764647,6.25,94.941,94.89,6.0]
[1643516764849,0.25,94.941,94.89,21.34]
[1643516765248,0.35,94.95,94.89,21.34]
[1643516765448,6.0,94.941,94.89,21.34]
[1643516765850,0.25,94.94,94.89,21.34]
[1643516766251,0.25,94.94,94.891,0.25]
[1643516766450,0.25,94.94,94.89,21.34]
[1643516768657,6.0,94.934,94.89,21.34]
[1643516768855,0.25,94.933,94.89,21.34]
[1643516769055,6.0,94.931,94.89,21.34]
[1643516769254,0.25,94.93,94.89,21.34]
[1643516769656,6.0,94.931,94.89,21.34]
[1643516769856,44.12584619,94.941,94.89,21.34]
[1643516770859,0.25,94.94,94.89,21.34]
[1643516772158,6.0,94.933,94.89,21.34]
[1643516772359,0.25,94.932,94.89,21.34]
[1643516772760,0.25,94.932,94.891,0.25]
[1643516773564,0.25,94.94,94.891,0.25]
[1643516778665,0.25,94.94,94.89,21.34]
[1643516780670,6.0,94.937,94.89,21.34]
[1643516780871,0.25,94.936,94.89,21.34]
[1643516781373,0.25,94.936,94.89,15.34]
[1643516782879,6.0,94.937,94.89,15.34]
[1643516783076,6.0,94.941,94.9,6.0]
[1643516783276,6.0,94.941,94.901,0.25]
[1643516784297,0.25,94.94,94.901,0.25]
[1643516784898,0.25,94.94,94.9,15.34]
[1643516799012,39.46462919,94.939,94.9,15.34]
[1643516799516,6.0,94.929,94.9,15.34]
[1643516799813,0.25,94.928,94.9,15.34]
[1643516801017,0.25,94.933,94.9,15.34]
[1643516802716,6.0,94.924,94.87,15.34]
[1643516802916,39.0,94.922,94.84,15.34]
[1643516803221,40.58209181,94.911,94.81,15.34]
[1643516803417,2.90208256,94.907,94.81,15.34]
[1643516803719,43.86160695,94.895,94.81,15.34]
[1643516803916,24.7688,94.894,94.81,15.34]
[1643516804116,6.0,94.884,94.81,15.34]
[1643516804317,0.25,94.883,94.81,15.34]
[1643516804519,6.25,94.883,94.81,15.34]
[1643516804719,22.38669142,94.883,94.81,15.34]
[1643516804915,19.43,94.883,94.81,15.34]
[1643516805317,2.95669142,94.882,94.81,15.34]
[1643516805516,8.95669142,94.882,94.81,15.34]
[1643516805716,45.7876104,94.872,94.81,15.34]
[1643516805917,0.25,94.871,94.81,15.34]
[1643516806117,6.0,94.862,94.81,15.34]
[1643516806317,0.25,94.861,94.81,15.34]
[1643516806922,39.16802562,94.851,94.81,15.34]
[1643516807320,0.25,94.85,94.81,15.34]
[1643516807521,6.0,94.841,94.81,15.34]
[1643516807919,0.25,94.84,94.81,15.34]
[1643516810829,38.56062479,94.83,94.81,15.34]
[1643516811229,0.25,94.829,94.81,15.34]
[1643516812231,38.56062479,94.83,94.81,15.34]
[1643516812429,0.25,94.829,94.81,15.34]
[1643516814838,6.0,94.82,94.81,15.34]
[1643516815031,2.6380491,94.82,94.81,15.34]
[1643516815231,0.25,94.819,94.81,15.34]
[1643516815432,2.6380491,94.82,94.81,15.34]
[1643516815933,38.56062479,94.83,94.81,15.34]
[1643516816135,78.85978256,94.925,94.81,15.34]
[1643516816334,0.25,94.878,94.81,15.34]
[1643516816532,6.0,94.869,94.81,15.34]
[1643516816933,6.25,94.868,94.81,15.34]
[1643516817234,6.0,94.858,94.81,15.34]
[1643516817648,0.25,94.857,94.81,15.34]
[1643516822452,0.25,94.857,94.79,15.34]
[1643516822656,6.25,94.857,94.79,15.34]
[1643516823153,6.0,94.856,94.79,15.34]
[1643516823355,0.25,94.855,94.79,15.34]
[1643516823554,40.48846358,94.846,94.79,15.34]
[1643516823954,6.0,94.836,94.79,15.34]
[1643516824356,0.25,94.835,94.79,15.34]
[1643516825357,6.0,94.836,94.79,15.34]
[1643516825760,0.25,94.835,94.79,15.34]
[1643516827560,6.25,94.835,94.79,15.34]
[1643516831169,0.25,94.835,94.79,15.34]
[1643516831368,24.5451,94.89,94.791,0.25]
[1643516831567,24.5451,94.89,94.8,6.0]
[1643516831767,24.5451,94.89,94.81,15.34]
[1643516832167,24.5451,94.89,94.811,0.25]
[1643516832368,32.97791572,94.889,94.82,6.0]
[1643516832566,32.97791572,94.889,94.821,6.0]
[1643516832767,23.9184,94.888,94.821,6.0]
[1643516832970,23.9184,94.888,94.812,23.2038]
[1643516833166,23.9184,94.888,94.822,6.0]
[1643516833569,23.9184,94.888,94.813,0.25]
[1643516833769,0.25,94.887,94.813,0.25]
[1643516834568,6.0,94.878,94.813,0.25]
[1643516834770,24.8544,94.877,94.813,0.25]
[1643516835573,24.8544,94.877,94.822,6.0]
[1643516835772,24.8544,94.877,94.813,0.25]
[1643516836770,24.8544,94.877,94.814,1.31649215]
[1643516837771,24.8544,94.877,94.813,0.25]
[1643516838076,35.66738488,94.866,94.813,0.25]
[1643516838273,0.25,94.865,94.813,0.25]
[1643516842180,6.0,94.856,94.813,0.25]
[1643516842379,0.25,94.855,94.813,0.25]
[1643516842579,0.25,94.855,94.811,0.25]
[1643516844410,0.25,94.855,94.81,15.34]
[1643516844807,0.25,94.865,94.81,15.34]
[1643516845008,6.0,94.856,94.81,15.34]
[1643516845409,0.25,94.855,94.801,24.589]
[1643516845609,6.25,94.855,94.801,24.589]
[1643516846008,0.25,94.855,94.801,24.589]
[1643516846410,6.0,94.856,94.801,24.589]
[1643516846809,0.25,94.855,94.801,24.589]
[1643516847012,0.25,94.855,94.79,15.34]
[1643516847210,24.2828,94.855,94.791,0.25]
[1643516847812,35.26697156,94.844,94.791,0.25]
[1643516848215,0.25,94.843,94.791,0.25]
[1643516849214,0.25,94.843,94.79,15.34]
[1643516849615,6.0,94.834,94.79,15.34]
[1643516849814,0.25,94.833,94.776,23.2566]
[1643516850620,0.25,94.833,94.78,15.34]
[1643516851215,0.25,94.842,94.78,15.34]
[1643516851616,6.0,94.833,94.78,15.34]
[1643516851816,0.25,94.832,94.781,0.25]
[1643516852419,0.25,94.832,94.78,15.34]
[1643516853120,0.25,94.842,94.78,15.34]
[1643516853722,35.26697156,94.844,94.78,15.34]
[1643516853919,35.26697156,94.844,94.78,16.65649215]
[1643516854121,0.25,94.843,94.78,16.65649215]
[1643516854317,0.25,94.843,94.78,15.34]
[1643516854919,6.0,94.834,94.78,15.34]
[1643516855218,6.0,94.834,94.781,0.25]
[1643516855419,0.25,94.833,94.781,1.56260244]
[1643516855619,0.25,94.833,94.781,0.25]
[1643516856019,0.25,94.833,94.79,6.0]
[1643516856421,0.25,94.843,94.791,0.25]
[1643516856822,35.26697156,94.844,94.791,0.25]
[1643516857224,35.26697156,94.844,94.79,6.0]
[1643516857621,35.26697156,94.844,94.78,15.34]
[1643516857822,35.26697156,94.844,94.781,0.25]
[1643516858222,0.25,94.843,94.781,0.25]
[1643516858422,0.25,94.843,94.78,15.34]
[1643516858627,6.0,94.834,94.78,15.34]
[1643516858926,24.0702,94.833,94.78,15.34]
[1643516860024,35.26697156,94.844,94.781,1.31260244]
[1643516860221,25.98288256,94.888,94.78,15.34]
[1643516860222,0.25,94.843,94.78,15.34]
[1643516860422,24.5331,94.868,94.781,0.25]
[1643516860624,6.0,94.858,94.79,6.0]
[1643516860823,0.25,94.857,94.791,0.25]
[1643516861023,0.25,94.857,94.791,1.56260244]
[1643516861225,33.7087847,94.857,94.791,1.56260244]
[1643516861429,33.7087847,94.857,94.791,0.25]
[1643516861627,23.982,94.856,94.791,24.8779]
[1643516861824,0.25,94.855,94.791,24.8779]
[1643516862025,0.25,94.855,94.801,6.0]
[1643516862453,6.0,94.846,94.791,24.8779]
[1643516862826,0.25,94.845,94.791,24.8779]
[1643516863026,0.25,94.845,94.801,6.0]
[1643516863828,0.25,94.855,94.801,6.0]
[1643516864033,0.25,94.855,94.791,24.8779]
[1643516864631,0.25,94.855,94.801,6.0]
[1643516865230,0.25,94.855,94.801,7.31260244]
[1643516865432,0.25,94.855,94.801,6.0]
[1643516865832,0.25,94.856,94.802,0.25]
[1643516867234,25.0177,94.856,94.802,0.25]
[1643516867634,25.0177,94.856,94.801,6.0]
[1643516867835,25.0177,94.856,94.803,1.31260244]
[1643516868035,25.0177,94.856,94.801,6.0]
[1643516868835,25.0177,94.856,94.802,0.25]
[1643516869438,0.25,94.856,94.802,0.25]
[1643516870462,0.25,94.886,94.811,105.4]
[1643516870660,0.25,94.909,94.813,105.4]
[1643516870860,0.25,94.909,94.82,6.0]
[1643516871061,0.25,94.909,94.83,15.34]
[1643516871362,40.17720111,94.925,94.84,15.34]
[1643516871566,40.17720111,94.925,94.841,24.477]
[1643516871962,40.17720111,94.925,94.851,6.0]
[1643516871963,6.0,94.915,94.851,6.0]
[1643516872162,6.0,94.915,94.841,24.477]
[1643516872363,23.5917,94.914,94.841,24.477]
[1643516872572,29.5917,94.914,94.841,24.477]
[1643516872961,29.5917,94.914,94.84,15.34]
[1643516873162,0.25,94.913,94.84,15.34]
[1643516875162,6.0,94.909,94.84,15.34]
[1643516875364,34.8819817,94.908,94.84,15.34]
[1643516875562,6.0,94.898,94.84,15.34]
[1643516875763,24.4165,94.897,94.84,15.34]
[1643516878170,0.25,94.897,94.84,15.34]
[1643516878371,0.25,94.907,94.841,0.25]
[1643516878571,0.25,94.907,94.841,11.6]
[1643516879069,0.25,94.907,94.842,24.8647]
[1643516879270,0.25,94.907,94.843,0.25]
[1643516879473,6.0,94.898,94.842,24.8647]
[1643516879671,6.0,94.898,94.843,0.25]
[1643516879871,0.25,94.897,94.843,0.25]
[1643516880970,34.6319817,94.908,94.843,0.25]
[1643516880971,0.25,94.907,94.843,0.25]
[1643516881772,6.0,94.898,94.843,0.25]
[1643516882270,0.25,94.897,94.843,0.25]
[1643516883172,0.25,94.897,94.844,1.31846286]
[1643516883371,0.25,94.907,94.845,0.25]
[1643516884474,6.0,94.898,94.843,0.25]
[1643516884679,1.462809,94.916,94.846,1.31846286]
[1643516884877,1.462809,94.916,94.861,105.4]
[1643516885075,24.7068,94.988,94.86,15.34]
[1643516885076,1.462809,94.947,94.872,105.4]
[1643516885277,1.462809,94.957,94.88,15.34]
[1643516885477,1.462809,94.96,94.882,111.4]
[1643516885677,42.10237153,94.959,94.89,6.0]
[1643516885876,0.1,94.958,94.9,15.34]
[1643516886377,0.35,94.958,94.901,1.56846286]
[1643516886677,6.0,94.949,94.901,0.25]
[1643516886879,6.0,94.949,94.902,1.31846286]
[1643516887280,0.1,94.958,94.903,0.25]
[1643516887479,1.462809,94.973,94.903,23.7308]
[1643516887677,6.0,94.963,94.904,1.31846286]
[1643516887879,6.0,94.963,94.905,0.25]
[1643516888077,6.0,94.965,94.905,0.25]
[1643516888279,38.27355696,94.964,94.906,1.31846286]
[1643516888479,0.1,94.963,94.906,1.31846286]
[1643516888703,0.35,94.963,94.907,0.25]
[1643516888978,6.0,94.954,94.905,0.25]
[1643516889478,0.25,94.953,94.905,0.25]
[1643516889881,0.25,94.953,94.904,0.25]
[1643516891479,0.25,94.953,94.903,23.4808]
[1643516891682,0.25,94.953,94.904,0.25]
[1643516892485,0.25,94.953,94.903,23.4808]
[1643516892682,0.25,94.953,94.9,15.34]
[1643516892683,23.1788,94.953,94.9,15.34]
[1643516892883,0.1,94.952,94.9,15.34]
[1643516893083,36.21061779,94.942,94.9,15.34]
[1643516893283,0.1,94.951,94.9,15.34]
[1643516893583,0.1,94.952,94.901,0.25]
[1643516894384,35.94256346,94.952,94.901,0.25]
[1643516894583,0.1,94.951,94.901,0.25]
[1643516894785,0.35,94.951,94.901,0.25]
[1643516895589,0.35,94.951,94.9,15.34]
[1643516895987,6.0,94.942,94.9,15.34]
[1643516896415,0.25,94.941,94.9,15.34]
[1643516898618,0.35,94.951,94.9,15.34]
[1643516900319,6.0,94.942,94.9,15.34]
[1643516900521,0.35,94.951,94.9,15.34]
[1643516906427,6.0,94.942,94.9,15.34]
[1643516906924,0.25,94.941,94.9,15.34]
[1643516908931,0.35,94.951,94.9,15.34]
[1643516909331,6.0,94.942,94.9,15.34]
[1643516909833,0.25,94.941,94.9,15.34]
[1643516910035,6.25,94.941,94.9,15.34]
[1643516910437,0.25,94.941,94.9,15.34]
[1643516910832,6.0,94.941,94.9,15.34]
[1643516911233,6.0,94.931,94.9,15.34]
[1643516911635,0.25,94.93,94.9,15.34]
[1643516912236,0.25,94.93,94.861,24.4985]
[1643516912437,0.25,94.93,94.842,17.42713589]
[1643516912637,6.25,94.93,94.842,1.46203589]
[1643516912838,129.3661,94.929,94.832,23.9863]
[1643516913041,1.462809,94.914,94.832,25.44833589]
[1643516913239,35.28165595,94.913,94.832,23.9863]
[1643516913440,6.0,94.904,94.832,23.9863]
[1643516913641,28.5258,94.903,94.832,23.9863]
[1643516914039,0.25,94.902,94.832,23.9863]
[1643516914641,0.25,94.902,94.832,25.30476286]
[1643516915942,0.25,94.902,94.833,0.25]
[1643516916340,0.25,94.902,94.834,1.31846286]
[1643516916738,0.25,94.902,94.835,0.25]